[Event "2nd Namma Bengaluru Open-A 2025"]
[Site "Bengaluru"]
[Date "2025.04.16"]
[Round "8.1"]
[White "Petrosyan, Manuel"]
[Black "Dzhumaev, Marat"]
[Result "1/2-1/2"]
[Annotator "TA"]
[ECO "A32"]
[WhiteElo "2544"]
[BlackElo "2352"]
[PlyCount "43"]
[EventDate "2025.04.10"]
[EventType "swiss"]
[EventCountry "IND"]
[SourceTitle "playchess.com"]
[Source "ChessBase"]
[SourceQuality "1"]
[TimeControl "5400+30"]

{[%evp 14,43,0,0,8,8,12,4,17,0,0,0,-5,-1,-10,-7,0,0,-20,-9,-9,-15,-12,-56,0,-45,0,-60,0,-36,0,-67]} 1. d4 {[%emt 0:00:30]} Nf6 {[%emt 0:00:30]} 2. c4 {[%emt 0:00:30]} e6 {[%emt 0:00:30]} 3. Nf3 {[%emt 0:00:30]} c5 {[%emt 0:00:30]} 4. g3 {[%emt 0:00:30]} cxd4 {[%emt 0:00:30]} 5. Nxd4 {[%emt 0:00:30]} Qc7 {[%emt 0:00:30]} 6. Nc3 {[%emt 0:00:30]} a6 {[%emt 0:00:30]} 7. Bg2 {[%emt 0:00:30] 7.Bg2 scores better than 7.Qd3.} Qxc4 {[%emt 0:00:30]} 8. Bf4 {[%emt 0:00:30]} Nc6 {[%emt 0:00:30] A32: Symmetrical English: 2 Nf3 Nf6 3 d4 cxd4 4 Nxd4 e6.} 9. Nb3 {[%emt 0:00:30]} d5 {[%emt 0:00:30]} 10. Rc1 {[%emt 0:00:30][%cal Oc3d5][%mdl 1024] [#] and Nxd5! should not be overlooked White has compensation.} Qb4 {[%emt 0:00:30]} 11. O-O {[%emt 0:00:30]} Be7 {[%emt 0:00:30]} 12. Bc7 {[%emt 0:00:30][%cal Oe2e4]} (12. a3 $5 Qb6 $8 13. e4 $11) 12... O-O {[%emt 0:00:30]} 13. a3 {[%emt 0:00:30]} Qg4 {[%emt 0:00:30]} 14. e4 {[%emt 0:00:30]} Qg6 $146 {[%emt 0:00:30]} (14... Qxd1 15. Rfxd1 dxe4 16. Nxe4 Nd5 17. Bd6 Bxd6 18. Nxd6 Nce7 19. Na5 Rd8 20. Nxc8 Rdxc8 21. Rxc8+ Rxc8 22. Nxb7 {½-½ Ernst,S (2530)-Goganov,A (2598) Moscow Aeroflot op-A 14th 2015 (2)}) 15. exd5 {[%emt 0:00:30]} exd5 {[%emt 0:00:30]} 16. Nxd5 {[%emt 0:00:30]} Nxd5 {[%emt 0:00:30]} 17. Bxd5 {[%emt 0:00:30]} Bg4 {[%emt 0:00:30]} 18. Bf3 {[%emt 0:00:30]} Bh3 {[%emt 0:00:30]} (18... Bxf3 $15 19. Qxf3 Bf6) 19. Bg2 {[%emt 0:00:30]} Bg4 {[%emt 0:00:30]} 20. Bf3 {[%emt 0:00:30]} Bh3 {[%emt 0:00:30]} (20... Bxf3 $15 21. Qxf3 Bf6) 21. Bg2 {[%emt 0:00:30]} Bg4 {[%emt 0:00:30]} 22. Bf3 {[%emt 0:00:30] Weighted Error Value: White=0.11 (very precise) /Black=0.16 (very precise)   Mistake:       	---       	Black=2      Inaccurate:     	White=3     	---        OK:         	White=7     	Black=5      Best:        	---       	Black=1} 1/2-1/2

[Event "2nd Namma Bengaluru Open-A 2025"]
[Site "Bengaluru"]
[Date "2025.04.16"]
[Round "8.2"]
[White "Nithin Babu"]
[Black "Pantsulaia, Levan"]
[Result "1/2-1/2"]
[Annotator "TA"]
[ECO "B41"]
[WhiteElo "2242"]
[BlackElo "2532"]
[PlyCount "79"]
[EventDate "2025.04.10"]
[EventType "swiss"]
[EventCountry "IND"]
[SourceTitle "playchess.com"]
[Source "ChessBase"]
[SourceQuality "1"]
[TimeControl "5400+30"]

{[%evp 13,79,29,52,38,46,33,37,13,17,27,41,22,58,58,54,13,72,24,70,56,56,62,64,17,35,15,37,0,103,0,0,0,0,0,0,0,0,0,0,0,0,-6,-6,-6,-7,0,0,0,0,-12,-40,-79,-67,-58,-64,-59,-68,-922,0,0,0,0,0,0,27,0,27,27]} 1. e4 {[%emt 0:02:04]} c5 {[%emt 0:00:15]} 2. Nf3 {[%emt 0:00:35]} e6 {[%emt 0:00:13]} 3. d4 {[%emt 0:00:11]} cxd4 {[%emt 0:00:06]} 4. Nxd4 {[%emt 0:00:04]} a6 {[%emt 0:00:11]} 5. c4 {[%emt 0:00:06]} Nf6 {[%emt 0:00:14]} 6. Nc3 {[%emt 0:00:10]} Qc7 {[%emt 0:00:05]} 7. a3 $1 {[%emt 0:00:09] 7.a3 scores better than 7.Be2.} b6 {[%emt 0:00:30]} 8. f4 {[%emt 0:00:13] B41: Sicilian: Kan Variation: 5 c4.} Bb7 {[%emt 0:00:29]} 9. Bd3 {[%emt 0:00:14]} Nc6 {[%emt 0:30:25]} 10. Nxc6 {[%emt 0:00:07] White is slightly better.} Bxc6 {[%emt 0:00:04]} 11. e5 {[%emt 0:02:07]} Ng8 {[%emt 0:00:06]} (11... Bxg2 $2 12. Rg1 Bc6 13. exf6 gxf6 14. Be3 $18) 12. Qe2 {[%emt 0:00:52]} Nh6 $146 {[%emt 0:03:01][%cal Ob6b5]} (12... d6 13. Nd5 Qd8 14. Nb4 Bb7 15. Bc2 Qd7 16. Be3 a5 17. Nd3 Qc7 18. f5 dxe5 {½-½ Mrva,M (2398)-Laurusas,T (2578) SVK-chT 2425 2024 (6.2)}) 13. b4 {[%emt 0:01:56]} Be7 {[%emt 0:04:02]} 14. Bb2 {[%emt 0:01:47]} O-O {[%emt 0:06:16]} (14... Bh4+ $11 15. Kd2 O-O) 15. O-O-O {[%emt 0:04:56]} (15. Ne4 $16) 15... f6 {[%emt 0:07:56]} (15... d5 $11) 16. Kb1 $14 {[%emt 0:07:45] White is more active.} fxe5 {[%emt 0:02:14]} 17. fxe5 {[%emt 0:02:36]} Rf7 {[%emt 0:02:29]} 18. Ne4 {[%emt 0:05:27]} (18. Qc2 $14 {is more appropriate.}) 18... Raf8 $11 {[%emt 0:00:28]} 19. Bc2 {[%emt 0:12:19]} Rf4 {[%emt 0:04:52]} 20. Rhe1 {[%emt 0:07:03]} Ng4 {[%emt 0:03:37] [#] Prevents Nf6+.} (20... Bxe4 $11 21. Bxe4 a5) 21. g3 {[%emt 0:05:33]} ({Only move:} 21. Nd6 $1 $16) 21... Rxe4 {[%emt 0:01:23]} 22. Bxe4 {[%emt 0:00:05]} Bxe4+ {[%emt 0:00:03]} 23. Qxe4 {[%emt 0:00:07]} Nf2 {[%emt 0:00:04]} 24. Qd4 {[%emt 0:02:52]} Nxd1 {[%emt 0:00:08]} 25. Rxd1 {[%emt 0:00:02]} Rd8 {[%emt 0:00:20]} 26. Qe4 {[%emt 0:09:39]} Qc6 {[%emt 0:05:44]} 27. Qxc6 {[%emt 0:19:49]} dxc6 {[%emt 0:00:05]} 28. Rxd8+ {[%emt 0:00:39] Not much happening anymore} Bxd8 {[%emt 0:00:06][%mdl 4096] Endgame KB-KB} 29. Kc2 {[%emt 0:00:10]} b5 {[%emt 0:01:45]} 30. Kd3 {[%emt 0:00:53]} Kf7 {[%emt 0:00:07]} 31. Kd4 {[%emt 0:04:47] Hoping for Kc5.} Bb6+ {[%emt 0:03:01]} 32. c5 {[%emt 0:00:10]} Bd8 {[%emt 0:00:06]} 33. Bc1 {[%emt 0:00:20]} Kg6 $1 {[%emt 0:00:58] Strongly threatening ...Bg5.} 34. Ke4 {[%emt 0:00:10]} Bg5 {[%emt 0:04:03]} 35. Bf4 {[%emt 0:00:17][%mdl 8192] [#]} (35. Bb2 $15) 35... Bh6 $2 {[%emt 0:02:30]} (35... Kh5 $1 $19 36. Kf3 Bxf4 37. Kxf4 g5+ 38. Kf3 h6) 36. h4 {[%emt 0:05:06][%cal Bh2h4,Bh4h5][%mdl 32]} ({Wrong is} 36. Bxh6 $2 Kxh6 37. Kf4 Kh5 $19) 36... Kh5 {[%emt 0:10:10]} 37. Bxh6 {[%emt 0:02:27]} Kxh6 {[%emt 0:00:05]} 38. g4 {[%emt 0:00:26]} g6 {[%emt 0:00:06][%cal Bg7g6,Bg6g5][%mdl 32]} (38... g5 $5 39. h5 $8 Kg7 $11) 39. Kf3 {[%emt 0:00:36]} g5 {[%emt 0:00:16]} 40. h5 {[%emt 0:00:21] Weighted Error Value: White=0.32/Black=0.27 (precise)   Loses game:     	White=1     	---        Missed win:     	---       	Black=1      Mistake:       	White=3     	Black=3      Inaccurate:     	White=3     	Black=2      OK:         	White=11    	Black=14     Best:        	White=3     	Black=1      Strong:       	---       	Black=1} 1/2-1/2

[Event "2nd Namma Bengaluru Open-A 2025"]
[Site "Bengaluru"]
[Date "2025.04.16"]
[Round "8.3"]
[White "Iniyan, Pa"]
[Black "Vaz, Ethan"]
[Result "1-0"]
[Annotator "TA"]
[ECO "E66"]
[WhiteElo "2578"]
[BlackElo "2430"]
[PlyCount "73"]
[EventDate "2025.04.10"]
[EventType "swiss"]
[EventCountry "IND"]
[SourceTitle "playchess.com"]
[Source "ChessBase"]
[SourceQuality "1"]
[TimeControl "5400+30"]

{[%evp 23,73,9,23,18,11,11,47,49,58,68,69,56,64,49,82,41,43,65,154,159,301,287,298,205,402,352,554,555,2116,2050,2118,2924,2952,370,2862,2891,3075,2460,2168,2159,6785,5968,3416,1798,1513,964,29995,29984,29982,29983,29980,29981]} 1. d4 {[%emt 0:01:55]} Nf6 {[%emt 0:00:05]} 2. c4 {[%emt 0:00:10]} g6 {[%emt 0:00:13]} 3. Nf3 {[%emt 0:00:07]} Bg7 {[%emt 0:00:08]} 4. g3 {[%emt 0:00:07]} O-O {[%emt 0:00:19]} 5. Bg2 {[%emt 0:00:07]} d6 {[%emt 0:00:32]} 6. Nc3 {[%emt 0:00:09]} c5 {[%emt 0:01:34]} 7. O-O {[%emt 0:00:11]} Nc6 {[%emt 0:00:22]} 8. d5 {[%emt 0:00:29]} Na5 {[%emt 0:00:31]} 9. Nd2 {[%emt 0:00:12]} a6 {[%emt 0:07:47]} 10. Qc2 {[%emt 0:00:26]} Rb8 {[%emt 0:02:17]} 11. b3 {[%emt 0:00:53]} b5 {[%emt 0:09:01]} 12. Rb1 {[%emt 0:00:58]} Bf5 {[%emt 0:25:02]} 13. e4 {[%emt 0:00:32] E66: King's Indian: Fianchetto: 6...c5 7 0-0 Nc6 8 d5.} Bd7 {[%emt 0:00:18]} 14. Nd1 $5 {[%emt 0:03:23][%mdl 4] Leaves trodden paths.} e6 {[%emt 0:09:08]} 15. Ne3 {[%emt 0:01:42] White is slightly better.} exd5 $146 {[%emt 0:04:46]} (15... Bh6 16. Re1 e5 17. Bb2 Ne8 18. Bc3 b4 19. Bb2 Nb7 20. f3 f5 21. Ndf1 f4 {½-½ Kaptsan,A (2255)-Gentes,K (2285) Winnipeg Scorpion 1992}) 16. cxd5 {[%emt 0:02:51]} h5 {[%emt 0:07:04]} 17. h3 {[%emt 0:12:10]} Nh7 {[%emt 0:04:42]} 18. f4 {[%emt 0:06:02]} Re8 {[%emt 0:02:39]} 19. e5 {[%emt 0:12:08]} dxe5 {[%emt 0:02:08] NOTEXT-51077 White (d5)} 20. f5 {[%emt 0:00:06]} (20. Qxc5 $2 exf4 21. gxf4 Rc8 $19) 20... e4 {[%emt 0:09:57] Black is on the road to losing.} 21. Nxe4 $16 {[%emt 0:04:21]} (21. Bxe4 g5 22. Re1 (22. Qxc5 $2 {loses.} Rc8 $19) 22... c4 $11) 21... Bd4 {[%emt 0:03:15]} (21... Nb7 $16 22. fxg6 (22. Nxc5 Nxc5 23. fxg6 fxg6 $15) 22... fxg6) 22. fxg6 $18 {[%emt 0:03:35]} fxg6 {[%emt 0:00:01]} 23. Kh1 {[%emt 0:00:43][%cal Oe4c5] Nxc5! is the strong threat.} Qe7 {[%emt 0:05:41]} (23... Rf8 {was called for.} 24. Bb2 (24. Nxc5 Rxf1+ 25. Bxf1 Nf8 $18) 24... Rc8) 24. d6 {[%emt 0:04:05]} Qe5 {[%emt 0:02:19] [#]} (24... Qg7 $142 25. Nxc5 Rbc8) 25. Nxc5 $1 {[%emt 0:07:39][%mdl 512]} Qxc5 {[%emt 0:01:59]} (25... Bc6 26. Bxc6) 26. Qxg6+ {[%emt 0:00:10]} Kh8 {[%emt 0:00:56]} 27. Rf7 {[%emt 0:00:45][%csl LRd7,LRh7]} Nf8 {[%emt 0:00:33] [#]} 28. Rxf8+ $1 {[%emt 0:00:55][%mdl 512]} Rxf8 {[%emt 0:00:04] [#]} 29. Be4 $1 {[%emt 0:00:10][%csl Ge4][%cal Rg6h7]} Bf5 {[%emt 0:00:26]} (29... Rf1+ 30. Nxf1) 30. Nxf5 {[%emt 0:00:07]} Rb7 {[%emt 0:01:02]} 31. Nxd4 {[%emt 0:02:54] Bb2 would kill now.} Rf1+ {[%emt 0:00:15]} 32. Kg2 {[%emt 0:00:08]} Rbf7 {[%emt 0:00:54]} 33. Qh6+ {[%emt 0:02:35]} Kg8 {[%emt 0:00:02] [#]} 34. Bh7+ $1 {[%emt 0:00:39]} Kh8 {[%emt 0:00:59]} (34... Rxh7 35. Qg6+) 35. Bg6+ {[%emt 0:00:19] White mates.} Kg8 {[%emt 0:00:04]} 36. Bxf7+ {[%emt 0:00:07]} Rxf7 {[%emt 0:00:06]} 37. Qg6+ {[%emt 0:00:04] Weighted Error Value: White=0.56/Black=1.25  Mistake:       	---       	Black=4      Inaccurate:     	White=2     	Black=3      OK:         	White=5     	Black=3      Best:        	White=1     	Black=2      Brilliant:      	White=1     	---} 1-0

[Event "2nd Namma Bengaluru Open-A 2025"]
[Site "Bengaluru"]
[Date "2025.04.16"]
[Round "8.4"]
[White "Hari Madhavan N B"]
[Black "Aronyak Ghosh"]
[Result "1/2-1/2"]
[Annotator "RC"]
[ECO "A14"]
[WhiteElo "2393"]
[BlackElo "2525"]
[PlyCount "41"]
[EventDate "2025.04.10"]
[EventType "swiss"]
[EventCountry "IND"]
[SourceTitle "playchess.com"]
[Source "ChessBase"]
[SourceQuality "1"]
[TimeControl "5400+30"]

1. Nf3 {[%emt 0:04:08]} Nf6 {[%emt 0:01:30]} 2. b3 {[%emt 0:00:06]} e6 {[%emt 0:01:52]} 3. Bb2 {[%emt 0:00:14]} Be7 {[%emt 0:00:06]} 4. c4 {[%emt 0:01:03]} c5 {[%emt 0:01:33]} 5. g3 {[%emt 0:04:18]} b6 {[%emt 0:04:36]} 6. Bg2 {[%emt 0:00:38]} Bb7 {[%emt 0:00:07]} 7. O-O {[%emt 0:00:09]} O-O {[%emt 0:04:31]} 8. Nc3 {[%emt 0:01:16]} d5 {[%emt 0:06:41]} 9. cxd5 {[%emt 0:00:54]} Nxd5 {[%emt 0:01:29]} 10. Nxd5 {[%emt 0:02:55]} Bxd5 {[%emt 0:00:27]} 11. Qc2 {[%emt 0:01:08]} Bf6 {[%emt 0:04:29]} 12. h4 {[%emt 0:14:45]} Bxb2 {[%emt 0:05:52]} 13. Qxb2 {[%emt 0:01:03]} Nc6 {[%emt 0:02:58]} 14. d3 {[%emt 0:00:42]} Bxf3 {[%emt 0:01:42]} 15. Bxf3 {[%emt 0:00:10]} Rc8 {[%emt 0:00:03]} 16. Bxc6 {[%emt 0:03:15]} Rxc6 {[%emt 0:01:22]} 17. Qe5 {[%emt 0:08:24]} Qc7 {[%emt 0:00:01]} 18. Qb2 {[%emt 0:00:10]} Qd8 {[%emt 0:00:04]} 19. Qe5 {[%emt 0:00:05]} Qc7 {[%emt 0:00:03]} 20. Qb2 {[%emt 0:00:10]} Qd8 {[%emt 0:00:07]} 21. Qe5 {[%emt 0:00:45]} 1/2-1/2

[Event "2nd Namma Bengaluru Open-A 2025"]
[Site "Bengaluru"]
[Date "2025.04.16"]
[Round "8.5"]
[White "Chanda, Sandipan"]
[Black "Harsh Suresh"]
[Result "1/2-1/2"]
[Annotator "RC"]
[ECO "D02"]
[WhiteElo "2485"]
[BlackElo "2389"]
[PlyCount "133"]
[EventDate "2025.04.10"]
[EventType "swiss"]
[EventCountry "IND"]
[SourceTitle "playchess.com"]
[Source "ChessBase"]
[SourceQuality "1"]
[TimeControl "5400+30"]

1. d4 {[%emt 1:31:00]} d5 {[%emt 0:00:50]} 2. Nf3 {[%emt 0:00:00]} Nf6 {[%emt 1:30:40]} 3. Bf4 {[%emt 0:00:00]} c5 {[%emt 0:00:00]} 4. e3 {[%emt 0:00:00]} Nc6 {[%emt 0:00:00]} 5. Nbd2 {[%emt 0:00:00]} cxd4 {[%emt 0:00:00]} 6. exd4 {[%emt 0:00:00]} Bf5 {[%emt 0:00:00]} 7. Bb5 {[%emt 0:00:00]} e6 {[%emt 0:00:00]} 8. Ne5 {[%emt 0:00:00]} Qb6 {[%emt 0:00:00]} 9. c4 {[%emt 0:00:00]} dxc4 {[%emt 0:00:00]} 10. Bxc6+ {[%emt 0:00:00]} bxc6 {[%emt 0:00:00]} 11. Ndxc4 {[%emt 0:00:00]} Qa6 {[%emt 0:00:00]} 12. Qe2 {[%emt 0:00:00]} Bb4+ {[%emt 0:00:00]} 13. Bd2 {[%emt 0:00:00]} Bxd2+ {[%emt 0:00:00]} 14. Nxd2 {[%emt 0:00:00]} Qb5 {[%emt 0:00:00]} 15. Qxb5 {[%emt 0:00:00]} cxb5 {[%emt 0:00:00]} 16. Rc1 {[%emt 0:00:00]} Nd5 {[%emt 0:00:00]} 17. Nb3 {[%emt 0:00:00]} f6 {[%emt 0:00:00]} 18. Nc6 {[%emt 0:00:00]} Nf4 {[%emt 0:00:00]} 19. Nc5 {[%emt 0:00:00]} Nxg2+ {[%emt 0:00:00]} 20. Kd2 {[%emt 0:00:00]} Nf4 {[%emt 0:00:00]} 21. a4 {[%emt 0:00:00]} bxa4 {[%emt 0:00:00]} 22. Rc4 {[%emt 0:00:00]} a3 {[%emt 0:00:00]} 23. b4 {[%emt 0:00:00]} a2 {[%emt 0:00:00]} 24. Ra1 {[%emt 0:00:00]} Bb1 {[%emt 0:00:00]} 25. b5 {[%emt 0:00:00]} Kf7 {[%emt 0:00:00]} 26. Ra4 {[%emt 0:00:00]} Nd5 {[%emt 0:00:00]} 27. Nb7 {[%emt 0:00:00]} g5 {[%emt 0:00:40]} 28. R4xa2 {[%emt 0:00:00]} Bxa2 {[%emt 0:00:08]} 29. Rxa2 {[%emt 0:00:00]} e5 {[%emt 0:03:16]} 30. Kd3 {[%emt 0:00:00]} Nc7 {[%emt 0:03:27]} 31. Kc4 {[%emt 0:00:00]} exd4 {[%emt 0:01:36]} 32. Re2 {[%emt 0:00:00]} Kg6 {[%emt 0:00:54]} 33. Re7 {[%emt 0:00:00]} Nxb5 {[%emt 0:01:04]} 34. Kxb5 {[%emt 0:00:00]} Rae8 {[%emt 0:00:23]} 35. Rd7 {[%emt 0:00:00]} Re2 {[%emt 0:00:09]} 36. Nxd4 {[%emt 0:00:00]} Rxf2 {[%emt 0:00:18]} 37. Nd6 {[%emt 0:00:00]} Rxh2 {[%emt 0:01:10]} 38. N4f5 {[%emt 0:00:00]} Rf2 {[%emt 0:01:00]} 39. Rg7+ {[%emt 0:00:00]} Kh5 {[%emt 0:00:02]} 40. Rxa7 {[%emt 0:00:00]} Kg4 {[%emt 0:02:25]} 41. Nh6+ {[%emt 0:00:00]} Kh5 {[%emt 0:00:15]} 42. Nhf5 {[%emt 0:00:00]} Rf4 {[%emt 0:01:49]} 43. Ra3 {[%emt 0:00:00]} g4 {[%emt 0:00:44]} 44. Ra7 {[%emt 0:00:00]} Rxf5+ {[%emt 0:00:41]} 45. Nxf5 {[%emt 0:00:00]} Kg6 {[%emt 0:00:35]} 46. Ne3 {[%emt 0:00:00]} h5 {[%emt 0:00:28]} 47. Kc4 {[%emt 0:00:00]} Rd8 {[%emt 0:00:12]} 48. Ra5 {[%emt 0:00:52]} Rd2 {[%emt 0:00:49]} 49. Nf5 {[%emt 0:00:14]} Rf2 {[%emt 0:00:48]} 50. Nh4+ {[%emt 0:00:15]} Kh6 {[%emt 0:00:10]} 51. Kd4 {[%emt 0:05:15]} Rh2 {[%emt 0:00:44]} 52. Nf5+ {[%emt 0:00:05]} Kg6 {[%emt 0:00:37]} 53. Ke4 {[%emt 0:00:33]} Re2+ {[%emt 0:00:11]} 54. Kf4 {[%emt 0:00:30]} Rf2+ {[%emt 0:00:12]} 55. Ke4 {[%emt 0:00:04]} Re2+ {[%emt 0:00:49]} 56. Kf4 {[%emt 0:00:04]} Rf2+ {[%emt 0:00:05]} 57. Ke4 {[%emt 0:00:03]} Kg5 {[%emt 0:00:33]} 58. Ng7+ {[%emt 0:01:07]} f5+ {[%emt 0:00:10]} 59. Rxf5+ {[%emt 0:00:12]} Rxf5 {[%emt 0:00:07]} 60. Nxf5 {[%emt 0:00:02]} h4 {[%emt 0:00:12]} 61. Ne3 {[%emt 0:02:02]} h3 {[%emt 0:00:27]} 62. Nf1 {[%emt 0:00:05]} Kh5 {[%emt 0:00:51]} 63. Kf5 {[%emt 0:00:12]} Kh4 {[%emt 0:00:34]} 64. Kf4 {[%emt 0:00:03]} g3 {[%emt 0:00:26]} 65. Nxg3 {[%emt 0:00:05]} h2 {[%emt 0:00:05]} 66. Kf3 {[%emt 0:00:06]} h1=Q+ {[%emt 0:00:14]} 67. Nxh1 {[%emt 0:00:02]} 1/2-1/2

[Event "2nd Namma Bengaluru Open-A 2025"]
[Site "Bengaluru"]
[Date "2025.04.16"]
[Round "8.6"]
[White "Stany, G.A."]
[Black "Viani Antonio Dcunha"]
[Result "1/2-1/2"]
[Annotator "RC"]
[ECO "C80"]
[WhiteElo "2454"]
[BlackElo "2378"]
[PlyCount "35"]
[EventDate "2025.04.10"]
[EventType "swiss"]
[EventCountry "IND"]
[SourceTitle "playchess.com"]
[Source "ChessBase"]
[SourceQuality "1"]
[TimeControl "5400+30"]

1. e4 {[%emt 0:00:03]} e5 {[%emt 0:00:22]} 2. Nf3 {[%emt 0:00:06]} Nc6 {[%emt 0:00:06]} 3. Bb5 {[%emt 0:00:03]} a6 {[%emt 0:00:23]} 4. Ba4 {[%emt 0:00:06]} Nf6 {[%emt 0:00:09]} 5. O-O {[%emt 0:00:07]} Nxe4 {[%emt 1:32:00]} 6. d4 {[%emt 0:00:48]} b5 {[%emt 0:00:00]} 7. Bb3 {[%emt 0:00:06]} d5 {[%emt 0:00:00]} 8. dxe5 {[%emt 0:00:14]} Be6 {[%emt 0:00:00]} 9. Nbd2 {[%emt 0:00:41]} Nc5 {[%emt 0:00:00]} 10. c3 {[%emt 0:00:06]} d4 {[%emt 0:00:00]} 11. Bc2 {[%emt 0:04:40]} d3 {[%emt 0:00:00]} 12. Bb1 {[%emt 0:00:04]} Qd5 {[%emt 0:00:00]} 13. Re1 {[%emt 0:08:07]} Rd8 {[%emt 0:00:00]} 14. Re3 {[%emt 0:06:42]} Bf5 {[%emt 0:00:00]} 15. Nh4 {[%emt 0:09:04]} Be6 {[%emt 0:00:00]} 16. Nhf3 {[%emt 0:11:13]} Bf5 {[%emt 0:00:00]} 17. Nh4 {[%emt 0:10:50]} Be6 {[%emt 0:00:00]} 18. Nhf3 {[%emt 0:00:17]} 1/2-1/2

[Event "2nd Namma Bengaluru Open-A 2025"]
[Site "Bengaluru"]
[Date "2025.04.16"]
[Round "8.7"]
[White "Padmini, Rout"]
[Black "Audi Ameya"]
[Result "0-1"]
[Annotator "RC"]
[ECO "A06"]
[WhiteElo "2354"]
[BlackElo "2404"]
[PlyCount "82"]
[EventDate "2025.04.10"]
[EventType "swiss"]
[EventCountry "IND"]
[SourceTitle "playchess.com"]
[Source "ChessBase"]
[SourceQuality "1"]
[TimeControl "5400+30"]

1. Nf3 {[%emt 0:00:10]} c5 {[%emt 0:00:10]} 2. b3 {[%emt 0:01:50]} d5 {[%emt 0:01:09]} 3. Bb2 {[%emt 0:00:15]} f6 {[%emt 0:00:31]} 4. d3 {[%emt 0:03:11]} e5 {[%emt 0:00:16]} 5. Nbd2 {[%emt 0:00:09]} Nc6 {[%emt 0:00:48]} 6. g3 {[%emt 0:00:42]} Bg4 {[%emt 0:03:43]} 7. Bg2 {[%emt 0:02:15]} Qd7 {[%emt 0:00:03]} 8. a3 {[%emt 0:00:15]} Nh6 {[%emt 0:01:34]} 9. h3 {[%emt 0:01:40]} Be6 {[%emt 0:00:04]} 10. e3 {[%emt 0:00:27]} d4 {[%emt 0:09:22]} 11. Qe2 {[%emt 0:01:51]} Be7 {[%emt 0:00:53]} 12. O-O {[%emt 0:03:37]} Nf7 {[%emt 0:00:41]} 13. Kh2 {[%emt 0:02:33]} O-O {[%emt 0:04:22]} 14. Ng1 {[%emt 0:10:50]} Rae8 {[%emt 0:13:44]} 15. Rae1 {[%emt 0:07:12]} a6 {[%emt 0:06:13]} 16. Bxc6 {[%emt 0:20:09]} Qxc6 {[%emt 0:01:35]} 17. e4 {[%emt 0:00:13]} Bd6 {[%emt 0:02:20]} 18. a4 {[%emt 0:01:36]} b5 {[%emt 0:00:27]} 19. axb5 {[%emt 0:02:08]} axb5 {[%emt 0:00:03]} 20. Ra1 {[%emt 0:00:10]} Ra8 {[%emt 0:02:03]} 21. Rxa8 {[%emt 0:02:31]} Rxa8 {[%emt 0:00:04]} 22. Ra1 {[%emt 0:00:15]} Rxa1 {[%emt 0:07:00]} 23. Bxa1 {[%emt 0:00:02]} Qa6 {[%emt 0:00:03]} 24. Qd1 {[%emt 0:01:01]} Nd8 {[%emt 0:01:07]} 25. Ngf3 {[%emt 0:02:33]} Nc6 {[%emt 0:00:09]} 26. Ne1 {[%emt 0:00:26]} Bc7 {[%emt 0:02:57]} 27. Bb2 {[%emt 0:03:37]} Qa2 {[%emt 0:01:42]} 28. Qb1 {[%emt 0:07:13]} Qxb1 {[%emt 0:00:24]} 29. Nxb1 {[%emt 0:00:02]} Ba5 {[%emt 0:00:06]} 30. Nf3 {[%emt 0:00:16]} Nb4 {[%emt 0:00:32]} 31. Na3 {[%emt 0:02:30]} Nxc2 {[%emt 0:03:35]} 32. Nxc2 {[%emt 0:01:21]} Bxb3 {[%emt 0:00:02]} 33. Na3 {[%emt 0:04:31]} Bc3 {[%emt 0:01:33]} 34. Bc1 {[%emt 0:02:32]} b4 {[%emt 0:00:11]} 35. Nc4 {[%emt 0:14:44]} Bc2 {[%emt 0:14:58]} 36. Nfd2 {[%emt 0:02:48]} Bxd3 {[%emt 0:00:05]} 37. Kg2 {[%emt 0:00:43]} Bxd2 {[%emt 0:00:44]} 38. Nxd2 {[%emt 0:00:10]} c4 {[%emt 0:00:04]} 39. Nxc4 {[%emt 0:00:38]} Bxc4 {[%emt 0:00:04]} 40. Bd2 {[%emt 0:00:07]} b3 {[%emt 0:00:15]} 41. Bc1 {[%emt 0:00:08]} d3 {[%emt 0:00:15]} 0-1

[Event "2nd Namma Bengaluru Open-A 2025"]
[Site "Bengaluru"]
[Date "2025.04.16"]
[Round "8.8"]
[White "Nguyen, Quoc Hy"]
[Black "Podolchenko, Evgeniy"]
[Result "1/2-1/2"]
[Annotator "RC"]
[ECO "E48"]
[WhiteElo "2404"]
[BlackElo "2307"]
[PlyCount "80"]
[EventDate "2025.04.10"]
[EventType "swiss"]
[EventCountry "IND"]
[SourceTitle "playchess.com"]
[Source "ChessBase"]
[SourceQuality "1"]
[TimeControl "5400+30"]

1. c4 {[%emt 0:00:20]} Nf6 {[%emt 0:00:23]} 2. d4 {[%emt 0:00:10]} e6 {[%emt 0:00:14]} 3. Nc3 {[%emt 0:00:10]} Bb4 {[%emt 0:00:06]} 4. e3 {[%emt 0:00:16]} O-O {[%emt 0:00:12]} 5. Bd3 {[%emt 0:00:07]} Re8 {[%emt 0:00:47]} 6. Nge2 {[%emt 0:00:35]} d5 {[%emt 0:00:23]} 7. O-O {[%emt 0:00:09]} Bf8 {[%emt 0:00:11]} 8. Nf4 {[%emt 0:01:49]} a6 {[%emt 0:05:46]} 9. cxd5 {[%emt 0:19:49]} exd5 {[%emt 0:02:19]} 10. f3 {[%emt 0:00:49]} Be6 {[%emt 0:23:47]} 11. Nxe6 {[%emt 0:06:53]} Rxe6 {[%emt 0:00:17]} 12. Bf5 {[%emt 0:00:16]} Re8 {[%emt 0:07:55]} 13. e4 {[%emt 0:00:12]} g6 {[%emt 0:02:22]} 14. e5 {[%emt 0:14:31]} gxf5 {[%emt 0:06:52]} 15. exf6 {[%emt 0:00:08]} c6 {[%emt 0:00:29]} 16. Bg5 {[%emt 0:07:22]} Nd7 {[%emt 0:07:41]} 17. Qd3 {[%emt 0:03:43]} Nxf6 {[%emt 0:00:55]} 18. Ne2 {[%emt 0:00:27]} Bg7 {[%emt 0:06:49]} 19. Ng3 {[%emt 0:00:17]} Qb6 {[%emt 0:04:49]} 20. Qd2 {[%emt 0:06:05]} Re6 {[%emt 0:01:27]} 21. Nxf5 {[%emt 0:00:13]} Nd7 {[%emt 0:04:12]} 22. Rae1 {[%emt 0:13:38]} Rae8 {[%emt 0:03:41]} 23. Bh6 {[%emt 0:01:32]} Bf6 {[%emt 0:05:30]} 24. Bg7 {[%emt 0:04:43]} Qd8 {[%emt 0:02:34]} 25. Bh6 {[%emt 0:02:18]} Nf8 {[%emt 0:01:26]} 26. Bxf8 {[%emt 0:04:02]} Kxf8 {[%emt 0:00:49]} 27. Kh1 {[%emt 0:00:48]} Kg8 {[%emt 0:03:50]} 28. Nh6+ {[%emt 0:00:22]} Kf8 {[%emt 0:00:38]} 29. Nf5 {[%emt 0:00:06]} Kg8 {[%emt 0:00:04]} 30. Qf2 {[%emt 0:02:44]} Bg7 {[%emt 0:01:42]} 31. Rxe6 {[%emt 0:05:13]} fxe6 {[%emt 0:01:28]} 32. Nxg7 {[%emt 0:00:12]} Kxg7 {[%emt 0:00:03]} 33. Qg3+ {[%emt 0:00:13]} Kf7 {[%emt 0:01:06]} 34. Qh3 {[%emt 0:00:04]} Kg7 {[%emt 0:00:30]} 35. Qh5 {[%emt 0:01:17]} Qe7 {[%emt 0:00:54]} 36. Re1 {[%emt 0:00:27]} Qf7 {[%emt 0:00:31]} 37. Qe5+ {[%emt 0:00:41]} Qf6 {[%emt 0:00:02]} 38. f4 {[%emt 0:00:54]} Qxe5 {[%emt 0:00:35]} 39. Rxe5 {[%emt 0:00:06]} Kf7 {[%emt 0:00:04]} 40. g4 {[%emt 0:00:11]} Rc8 {[%emt 0:00:28]} 1/2-1/2